bitfinex-derivatives/quotes_BTCF0:USTF0_20250728
["timestamp","ask_amount","ask_price","bid_price","bid_amount"]
[1753710922984,0.67184247,118460.0,118450.0,0.5640649]
[1753710923289,0.56295247,118460.0,118450.0,1.11189672]
[1753710923584,0.03163,118440.0,118420.0,0.03022903]
[1753710923781,0.03163,118440.0,118400.0,2.85785112]
[1753710923782,0.1689019,118410.0,118400.0,3.0284062]
[1753710923981,0.68625006,118410.0,118400.0,3.12330903]
[1753710924177,0.21600135,118410.0,118400.0,3.82450903]
[1753710924382,0.21600135,118410.0,118400.0,2.85949]
[1753710924584,0.71834087,118410.0,118400.0,3.09308]
[1753710924978,0.71834087,118410.0,118400.0,3.26498458]
[1753710925178,0.78624574,118410.0,118400.0,3.12330903]
[1753710925387,0.78824574,118410.0,118400.0,3.12330903]
[1753710925684,0.78824574,118410.0,118400.0,3.09308]
[1753710925888,0.78624574,118410.0,118400.0,3.09308]
[1753710926080,0.78824574,118410.0,118400.0,3.79424]
[1753710926783,0.78824574,118410.0,118400.0,3.56065]
[1753710926984,0.78824574,118410.0,118400.0,3.79424]
[1753710927184,0.78824574,118410.0,118400.0,3.09308]
[1753710927382,0.78824574,118410.0,118400.0,3.79428]
[1753710928185,0.78924574,118410.0,118400.0,3.09508]
[1753710928485,0.78924574,118410.0,118400.0,3.79628]
[1753710928680,0.78924574,118410.0,118400.0,3.79624]
[1753710929586,0.78824574,118410.0,118400.0,3.09408]
[1753710930191,0.78824574,118410.0,118400.0,3.12430903]
[1753710930492,1.48944574,118410.0,118400.0,2.86049]
[1753710931387,1.65835774,118410.0,118400.0,2.86049]
[1753710931800,1.65835774,118410.0,118400.0,2.8135]
[1753710931988,1.65835774,118410.0,118400.0,2.86049]
[1753710932191,1.74281363,118410.0,118400.0,2.86049]
[1753710932592,1.74281363,118410.0,118400.0,2.85949]
[1753710933295,1.74281363,118410.0,118400.0,3.09308]
[1753710933491,1.74281363,118410.0,118400.0,2.85949]
[1753710934390,1.74081363,118410.0,118400.0,2.85949]
[1753710934593,2.49615315,118410.0,118400.0,1.7860845]
[1753710934897,1.99381363,118410.0,118400.0,1.7860845]
[1753710935196,1.74381363,118410.0,118400.0,1.8330745]
[1753710935697,1.74581363,118410.0,118400.0,1.8330745]
[1753710935991,1.74281363,118410.0,118400.0,1.8330745]
[1753710936196,1.74881363,118410.0,118400.0,1.8330745]
[1753710937492,1.04761363,118410.0,118400.0,2.0666645]
[1753710937696,0.99294622,118410.0,118400.0,2.0666645]
[1753710937996,0.99294622,118410.0,118400.0,2.26580973]
[1753710938185,0.99294622,118410.0,118400.0,2.09689353]
[1753710938694,1.49528574,118410.0,118400.0,2.09689353]
[1753710939096,0.99294622,118410.0,118400.0,2.26580973]
[1753710939485,0.22400135,118410.0,118400.0,2.77113763]
[1753710939885,0.2111095,118420.0,118410.0,0.6388619]
[1753710940095,0.0844412,118430.0,118410.0,1.70356855]
[1753710940294,0.2533274,118430.0,118420.0,1.17141615]
[1753710940494,0.2110887,118440.0,118430.0,0.6388334]
[1753710940701,0.1688727,118440.0,118430.0,1.87244195]
[1753710940895,0.0844251,118450.0,118440.0,0.6388191]
[1753710941095,0.2532811,118450.0,118440.0,1.17138765]
[1753710941302,0.2532811,118450.0,118440.0,1.17437603]
[1753710941495,0.2532811,118450.0,118440.0,0.67203651]
[1753710941800,0.2532811,118450.0,118440.0,1.37303651]
[1753710943203,0.2552811,118450.0,118440.0,1.37303651]
[1753710943803,0.2572811,118450.0,118440.0,1.37403651]
[1753710944104,0.2572811,118450.0,118440.0,1.37387651]
[1753710945405,0.2572811,118450.0,118440.0,1.87621603]
[1753710945602,0.2150677,118450.0,118440.0,1.87621603]
[1753710945998,0.004,118450.0,118440.0,1.87621603]
[1753710946199,0.1728448,118450.0,118440.0,1.87621603]
[1753710947406,0.1728448,118450.0,118440.0,1.87609603]
[1753710949205,0.1728448,118450.0,118440.0,1.37375651]
[1753710949398,0.1728448,118450.0,118440.0,1.87609603]
[1753710949798,0.2110454,118460.0,118450.0,0.3209049]
[1753710949997,0.2532383,118470.0,118460.0,0.3678806]
[1753710950210,0.2532383,118470.0,118460.0,1.87191915]
[1753710950402,0.2532383,118470.0,118460.0,1.87490753]
[1753710950709,0.2532158,118480.0,118470.0,0.6387764]
[1753710950901,0.2532158,118480.0,118470.0,1.17134495]
[1753710951106,0.2532158,118480.0,118470.0,1.17433333]
[1753710951313,0.1688126,118480.0,118470.0,1.17433333]
[1753710951606,0.1688021,118480.0,118470.0,1.30093933]
[1753710951804,0.1687964,118490.0,118480.0,0.6387621]
[1753710951998,0.18372966,118490.0,118480.0,1.84158162]
[1753710952317,0.18372966,118490.0,118480.0,1.87479903]
[1753710952505,0.01493326,118490.0,118480.0,1.87479903]
[1753710953202,0.01593326,118490.0,118480.0,1.87679903]
[1753710953403,0.18472116,118490.0,118480.0,1.17631903]
[1753710953711,0.18472116,118490.0,118480.0,1.87671903]
[1753710953909,0.18472116,118490.0,118480.0,0.67397951]
[1753710954110,0.97535068,118490.0,118480.0,1.01312903]
[1753710954702,0.97535068,118490.0,118480.0,0.002]
[1753710954910,0.97535068,118490.0,118480.0,0.70328]
[1753710955104,0.97535068,118490.0,118480.0,0.003]
[1753710955313,0.97535068,118490.0,118460.0,0.4556988]
[1753710955314,0.1688164,118470.0,118460.0,0.28687]
[1753710955612,0.97437918,118470.0,118460.0,0.24071]
[1753710956413,0.1688591,118440.0,118430.0,0.0844329]
[1753710956617,0.1688591,118440.0,118430.0,0.95652608]
[1753710956923,0.17525397,118440.0,118430.0,1.05461511]
[1753710957216,0.00639487,118440.0,118430.0,1.77596463]
[1753710957819,0.1688471,118450.0,118440.0,0.1688591]
[1753710958114,0.1688471,118450.0,118440.0,0.98829765]
[1753710958304,0.1688471,118450.0,118440.0,0.99128603]
[1753710958508,0.1688471,118450.0,118440.0,1.69144603]
[1753710959718,0.1728471,118450.0,118440.0,1.69244603]
[1753710959917,0.004,118450.0,118440.0,1.69244603]
[1753710960121,0.2532369,118470.0,118460.0,0.1688306]
[1753710960424,0.5836898,118490.0,118480.0,0.4095121]
[1753710960721,0.18371507,118490.0,118480.0,1.68836065]
[1753710961014,0.1340351,118510.0,118480.0,1.27787443]
[1753710961215,0.31771262,118510.0,118500.0,0.95798322]
[1753710961419,0.31771262,118510.0,118500.0,0.98821225]
[1753710961612,0.23332752,118510.0,118500.0,0.4556437]
[1753710961813,0.01491002,118510.0,118500.0,1.69128063]
[1753710963027,0.01691002,118510.0,118500.0,2.19362015]
[1753710963227,0.0001,118530.0,118520.0,0.4556152]
[1753710963432,0.0001,118530.0,118520.0,1.68818375]
[1753710963626,0.0001,118530.0,118520.0,1.69117213]
[1753710965025,0.1688309,118530.0,118520.0,1.69117213]
[1753710965221,0.1688309,118530.0,118520.0,0.99117213]
[1753710965425,0.3932909,118530.0,118520.0,1.18979261]
[1753710965727,0.3932909,118530.0,118520.0,1.18975261]
[1753710966024,0.3932909,118530.0,118520.0,0.28787]
[1753710966223,0.96346042,118530.0,118520.0,0.94151]
[1753710966537,0.4571209,118530.0,118520.0,0.94051]
[1753710966913,0.4581209,118530.0,118520.0,0.94151]
[1753710967325,0.96046042,118530.0,118520.0,0.24171]
[1753710967520,0.96046042,118530.0,118520.0,0.001]
[1753710968025,0.96346042,118530.0,118520.0,0.001]
[1753710968627,0.4611209,118530.0,118520.0,0.001]
[1753710968822,0.4591209,118530.0,118520.0,0.001]
[1753710969124,0.1708309,118530.0,118520.0,0.99217213]
[1753710969718,0.2204809,118530.0,118520.0,0.99217213]
[1753710971220,0.1708309,118530.0,118520.0,0.99217213]
[1753710973932,0.0021,118530.0,118520.0,0.99217213]
[1753710974131,1.04649209,118560.0,118550.0,0.2108688]
[1753710974132,0.2530511,118560.0,118550.0,0.2108688]
[1753710974331,0.3027011,118560.0,118550.0,1.72978735]
[1753710974632,0.4735111,118560.0,118550.0,1.72978735]
[1753710975231,0.48835828,118560.0,118550.0,1.72978735]
[1753710975434,0.49235828,118560.0,118550.0,1.73078735]
[1753710975734,0.54153328,118560.0,118550.0,1.77396175]
[1753710975932,0.32854828,118560.0,118550.0,1.77396175]
[1753710976134,0.27889828,118560.0,118550.0,1.77396175]
[1753710976526,0.27189828,118560.0,118550.0,1.77296175]
[1753710976726,0.27489828,118560.0,118550.0,1.77396175]
[1753710977533,0.32154828,118560.0,118550.0,1.77296175]
[1753710977721,0.27189828,118560.0,118550.0,1.77296175]
[1753710978134,0.01884718,118560.0,118550.0,1.77296175]
[1753710978433,0.18753538,118560.0,118550.0,1.77296175]
[1753710979635,0.18753538,118560.0,118550.0,1.51991855]
[1753710979942,0.47582538,118560.0,118550.0,1.68862095]
[1753710980738,0.40799538,118560.0,118550.0,1.68862095]
[1753710980938,0.47582538,118560.0,118550.0,1.68862095]
[1753710982342,0.40799538,118560.0,118550.0,1.68862095]
[1753710982933,0.23718538,118560.0,118550.0,1.68862095]
[1753710983139,0.18753538,118560.0,118550.0,1.69160933]
[1753710983344,0.18753538,118560.0,118550.0,1.6613803]
[1753710983544,0.18753538,118560.0,118550.0,1.69160933]
[1753710984337,0.18753538,118560.0,118550.0,1.17903095]
[1753710984639,1.0974749,118560.0,118550.0,0.001]
[1753710984940,1.25284393,118560.0,118550.0,0.001]
[1753710985240,1.06897393,118560.0,118550.0,0.001]
[1753710985445,0.56663441,118560.0,118550.0,0.1757]
[1753710985646,0.48228538,118560.0,118550.0,0.1757]
[1753710986339,0.48228538,118560.0,118550.0,0.4192225]
[1753710986547,0.48228538,118560.0,118550.0,0.4669525]
[1753710987147,0.48228538,118560.0,118550.0,0.29825]
[1753710987350,0.9846249,118560.0,118550.0,0.001]
[1753710987549,1.1684949,118560.0,118550.0,0.001]
[1753710988247,0.66615538,118560.0,118550.0,0.001]
[1753710988747,0.66615538,118560.0,118550.0,0.6568425]
[1753710990343,0.55013538,118560.0,118550.0,1.18941105]
[1753710991350,0.18753538,118560.0,118550.0,1.18941105]
[1753710991652,0.23685538,118560.0,118550.0,1.18941105]
[1753710991948,0.66615538,118560.0,118550.0,0.68707193]
[1753710992753,0.44387538,118560.0,118550.0,1.18941145]
[1753710992945,0.26946538,118560.0,118550.0,1.18941145]
[1753710994149,0.18753538,118560.0,118550.0,1.15918242]
[1753710994350,0.01884718,118560.0,118550.0,1.19239983]
[1753710994557,0.01884718,118560.0,118550.0,1.92354535]
[1753710994752,0.26173356,118580.0,118570.0,0.1686744]
[1753710994950,0.21956606,118580.0,118570.0,1.69729295]
[1753710995145,0.21956606,118580.0,118570.0,1.70028133]
[1753710995350,0.31269712,118590.0,118580.0,0.1686602]
[1753710995655,0.3023066,118590.0,118580.0,0.99847875]
[1753710995858,0.36201712,118590.0,118580.0,1.00146713]
[1753710996062,0.36201712,118590.0,118580.0,0.97402877]
[1753710996354,0.3023066,118590.0,118580.0,0.97402877]
[1753710996555,0.36201712,118590.0,118580.0,0.97402877]
[1753710996762,0.3023066,118590.0,118580.0,0.97402877]
[1753710997061,0.3023066,118590.0,118580.0,0.83280693]
[1753710997359,0.60944712,118590.0,118580.0,1.03022741]
[1753710997561,0.79331712,118590.0,118580.0,1.03022741]
[1753710997956,0.79431712,118590.0,118580.0,1.03022741]
[1753710998359,0.80312933,118590.0,118580.0,1.03022741]
[1753710998759,0.80312933,118590.0,118580.0,1.19888761]
[1753710998956,0.74341881,118590.0,118580.0,1.19888761]
[1753710999259,0.31411881,118590.0,118580.0,1.19888761]
[1753710999864,0.26479881,118590.0,118580.0,1.70122713]
[1753711000064,0.171646,118590.0,118580.0,1.70122713]
[1753711000261,0.05971052,118600.0,118590.0,0.358536]
[1753711000460,0.35480932,118610.0,118600.0,0.1686317]
[1753711000654,0.35480932,118610.0,118600.0,1.88694025]
[1753711000964,0.35480932,118610.0,118600.0,1.88992863]
[1753711001457,0.2950988,118610.0,118600.0,1.8596996]
[1753711001657,0.27047562,118620.0,118610.0,0.4658675]
[1753711001864,0.168614,118620.0,118610.0,0.99843605]
[1753711002067,0.168614,118620.0,118610.0,1.00142443]
[1753711003057,0.168614,118620.0,118610.0,0.83280693]
[1753711003261,0.217934,118620.0,118610.0,1.19752491]
[1753711003456,0.217934,118620.0,118610.0,1.02990741]
[1753711003457,0.397344,118620.0,118610.0,1.02990741]
[1753711003660,0.52807452,118620.0,118610.0,1.02691903]
[1753711004163,0.23332452,118620.0,118610.0,1.70086443]
[1753711004457,0.23632452,118620.0,118610.0,1.70086443]
[1753711005753,0.008,118620.0,118610.0,1.70086443]
[1753711006256,0.1766033,118620.0,118610.0,1.70086443]
[1753711006656,0.19143316,118620.0,118610.0,1.00242443]
[1753711006858,0.41516316,118620.0,118610.0,1.02974741]
[1753711007054,0.48618316,118620.0,118610.0,1.02974741]
[1753711007260,0.48618316,118620.0,118610.0,1.14764653]
[1753711007461,0.19143316,118620.0,118610.0,1.00242443]
[1753711007760,0.19143316,118620.0,118610.0,1.70070443]
[1753711007961,0.02282986,118620.0,118610.0,1.70070443]
[1753711008363,0.1685917,118630.0,118620.0,0.5893752]
[1753711008562,0.1685917,118630.0,118620.0,1.09171472]
[1753711008763,0.1685917,118630.0,118620.0,1.12493213]
[1753711009169,0.1685917,118630.0,118620.0,0.99848603]
[1753711009372,0.1685917,118630.0,118620.0,0.99850023]
[1753711009666,0.22827722,118650.0,118640.0,0.2433949]
[1753711009971,0.27802407,118650.0,118640.0,1.69364345]
[1753711010167,0.2178867,118650.0,118640.0,1.69663183]
[1753711010671,0.1685667,118650.0,118640.0,1.69663183]
[1753711011270,0.2228867,118650.0,118640.0,1.69763183]
[1753711011568,0.1735667,118650.0,118640.0,1.69763183]
[1753711011768,0.2228867,118650.0,118640.0,1.69763183]
[1753711012568,0.1735612,118650.0,118640.0,1.69763183]
[1753711014565,0.2199012,118650.0,118640.0,0.78607693]
[1753711014766,0.4530712,118650.0,118640.0,0.25350838]
[1753711014965,0.4530712,118650.0,118640.0,0.98165741]
[1753711016268,0.4530712,118650.0,118640.0,0.28373741]
[1753711016465,0.95541072,118650.0,118640.0,0.001]
[1753711016671,1.65329072,118650.0,118640.0,0.001]
[1753711016869,1.73757577,118650.0,118640.0,0.001]
[1753711017363,0.4530712,118650.0,118640.0,0.17302]
[1753711017564,0.95541072,118650.0,118640.0,0.001]
[1753711017868,1.03969577,118650.0,118640.0,0.001]
[1753711020263,1.05442311,118650.0,118640.0,0.001]
[1753711021764,0.4481138,118620.0,118610.0,0.51341032]
[1753711021961,0.4481138,118620.0,118610.0,0.54363935]
[1753711022164,0.4481138,118620.0,118610.0,0.24323]
[1753711022371,0.168618,118610.0,118600.0,0.4118569]
[1753711022676,0.448128,118610.0,118600.0,0.27345903]
[1753711022871,0.448128,118610.0,118600.0,0.20224903]
[1753711023375,0.4481423,118600.0,118590.0,0.4118765]
[1753711023568,0.4481423,118600.0,118590.0,0.44210553]
[1753711024072,0.46287874,118600.0,118590.0,0.27345903]
[1753711024472,0.1686607,118580.0,118570.0,1.69628432]
[1753711024674,0.2150007,118580.0,118570.0,1.76649747]
[1753711024870,0.2150007,118580.0,118570.0,1.7967265]
[1753711025372,0.3796407,118580.0,118570.0,1.77532173]
[1753711025572,0.2150007,118580.0,118570.0,1.7967325]
[1753711025970,0.2150007,118580.0,118570.0,1.6665792]
[1753711025971,0.3796407,118580.0,118570.0,1.6665792]
[1753711026270,0.3796407,118580.0,118570.0,1.7124392]
[1753711026773,0.3796407,118580.0,118570.0,1.69102843]
[1753711027072,0.3796407,118580.0,118570.0,1.71544437]
[1753711027272,0.3796407,118580.0,118570.0,1.69402843]
[1753711028476,0.39437103,118580.0,118570.0,1.71547614]
[1753711028874,0.39437103,118580.0,118570.0,1.69402843]
[1753711029965,0.39437103,118580.0,118570.0,1.52536693]
[1753711030272,0.66112103,118580.0,118570.0,0.003]
[1753711030473,0.26279103,118580.0,118570.0,1.1279332]
[1753711030668,0.18339103,118580.0,118570.0,1.15816223]
[1753711030873,0.22973103,118580.0,118570.0,1.19171223]
[1753711031375,0.66112103,118580.0,118570.0,0.44166]
[1753711031576,0.66112103,118580.0,118570.0,0.47188903]
[1753711031773,1.16346055,118580.0,118570.0,0.05349]
[1753711031972,1.86122055,118580.0,118570.0,0.006]
[1753711032374,1.86121526,118580.0,118570.0,0.006]
[1753711032579,1.35887574,118580.0,118570.0,0.006]
[1753711033277,1.35887574,118580.0,118570.0,1.11267482]
[1753711033484,0.59258574,118580.0,118570.0,1.02004855]
[1753711033674,0.66111397,118580.0,118570.0,0.16788]
[1753711033978,0.66111397,118580.0,118570.0,0.05349]
[1753711034577,0.66111397,118580.0,118570.0,0.006]
[1753711036581,1.16345349,118580.0,118570.0,0.006]
[1753711038079,0.66111397,118580.0,118570.0,0.006]
[1753711039073,0.1687038,118550.0,118540.0,0.2346082]
[1753711039277,0.6464338,118550.0,118540.0,0.62876486]
[1753711039481,0.6464338,118550.0,118540.0,0.43533903]
[1753711040179,0.6464338,118550.0,118540.0,0.60405703]
[1753711040481,0.2481038,118550.0,118540.0,1.1299759]
[1753711040680,0.2491038,118550.0,118540.0,1.16820493]
[1753711041381,0.2491038,118550.0,118540.0,1.16620493]
[1753711042081,0.18440147,118550.0,118540.0,1.16620493]
[1753711042781,0.1697038,118550.0,118540.0,1.16120493]
[1753711042976,0.1697038,118550.0,118540.0,1.16420493]
[1753711043185,0.2157838,118550.0,118540.0,1.02782693]
[1753711045576,0.4095638,118550.0,118540.0,1.02782693]
[1753711047884,0.4095638,118550.0,118540.0,1.19654493]
[1753711048380,0.2464338,118550.0,118540.0,1.19654493]
[1753711048974,0.4095638,118550.0,118540.0,0.98200693]
[1753711049178,0.65148731,118550.0,118540.0,1.67960693]
[1753711049677,0.65149299,118550.0,118540.0,0.17088]
[1753711050186,0.65149299,118550.0,118540.0,0.41182]
[1753711050585,0.65149299,118550.0,118540.0,0.05649]
[1753711051078,0.65149299,118550.0,118540.0,0.009]
[1753711051685,1.15383251,118550.0,118540.0,0.009]
[1753711052582,0.65149299,118550.0,118540.0,0.009]
[1753711052787,0.66000569,118550.0,118540.0,0.009]
[1753711056094,0.66000569,118550.0,118540.0,0.03049271]
[1753711056792,0.26115299,118550.0,118540.0,1.13386861]
[1753711056987,0.26115299,118550.0,118540.0,1.20991764]
[1753711057188,0.49560299,118550.0,118540.0,1.20991764]
[1753711057494,0.65149299,118550.0,118540.0,1.20991764]
[1753711057688,0.65149299,118550.0,118540.0,0.65876974]
[1753711057893,0.65149299,118550.0,118540.0,1.32390974]
[1753711059398,0.26115299,118550.0,118540.0,1.90440926]
[1753711059600,0.23054299,118550.0,118540.0,1.90739764]
[1753711062505,0.23054299,118550.0,118540.0,1.20991764]
[1753711062703,0.23054299,118550.0,118540.0,1.90735764]
[1753711064401,0.01575919,118550.0,118540.0,1.90735764]
[1753711064798,0.18446289,118550.0,118540.0,1.90735764]
[1753711065697,0.01575919,118550.0,118540.0,1.90735764]
[1753711066102,0.18446289,118550.0,118540.0,1.90735764]
[1753711066303,0.01575919,118550.0,118540.0,1.90735764]
[1753711066503,0.01575919,118550.0,118540.0,1.91611211]
[1753711067306,0.18446299,118550.0,118540.0,1.91611211]
[1753711067902,0.01575919,118550.0,118540.0,1.91611211]
[1753711069205,0.2530266,118570.0,118560.0,0.2010295]
[1753711069405,0.2569353,118570.0,118560.0,1.87360805]
[1753711069606,0.2875853,118570.0,118560.0,1.87659643]
[1753711069906,0.6779253,118570.0,118560.0,1.12649]
[1753711070104,0.6779253,118570.0,118560.0,1.15671903]
[1753711070305,0.6779253,118570.0,118560.0,0.15605]
[1753711070507,0.6357595,118560.0,118550.0,0.15605]
[1753711070707,1.13809902,118560.0,118550.0,0.69716]
[1753711070909,1.8552438,118550.0,118540.0,1.33827233]
[1753711071106,1.8552438,118550.0,118540.0,1.35988455]
[1753711071107,2.1357738,118550.0,118540.0,1.35988455]
[1753711071308,2.1357738,118550.0,118540.0,1.28743612]
[1753711071510,2.1357738,118550.0,118540.0,0.42160222]
[1753711071715,2.1357738,118550.0,118540.0,0.85613]
[1753711071914,2.1357738,118550.0,118540.0,0.87774346]
[1753711072212,2.1357738,118550.0,118540.0,0.02161346]
[1753711073304,2.1357738,118550.0,118540.0,0.02261346]
[1753711073807,2.1357738,118550.0,118540.0,0.19133146]
[1753711074005,2.1357738,118550.0,118540.0,0.02461346]
[1753711074817,2.1357738,118550.0,118540.0,0.003]
[1753711075019,2.1357738,118550.0,118540.0,0.171718]
[1753711075204,2.1357738,118550.0,118540.0,0.415968]
[1753711075406,2.1357738,118550.0,118540.0,0.465448]
[1753711075914,2.1357738,118550.0,118540.0,0.575798]
[1753711077019,2.1357738,118550.0,118540.0,1.07813752]
[1753711077514,1.7454338,118550.0,118540.0,1.0811259]
[1753711077716,1.7454338,118550.0,118540.0,1.14793218]
[1753711077916,1.7454338,118550.0,118540.0,1.1479311]
[1753711078117,1.7454338,118550.0,118540.0,1.17816013]
[1753711079221,1.9181438,118550.0,118540.0,1.17816013]
[1753711080016,1.9927238,118550.0,118540.0,1.17816013]
[1753711081320,2.00763666,118550.0,118540.0,1.17816013]
[1753711082810,2.00763666,118550.0,118540.0,1.13748838]
[1753711083620,2.00763666,118550.0,118540.0,1.11478229]
[1753711084726,1.76034666,118550.0,118540.0,1.85690229]
[1753711084925,1.76038666,118550.0,118540.0,1.85690229]
[1753711085322,2.00767666,118550.0,118540.0,1.85690229]
[1753711086520,2.00767666,118550.0,118540.0,1.81154229]
[1753711086726,2.00767666,118550.0,118540.0,0.94307591]
[1753711086922,3.13512443,118550.0,118540.0,0.0244452]
[1753711087226,1.63512443,118550.0,118540.0,0.003]
[1753711088222,1.20435666,118550.0,118540.0,0.003]
[1753711088423,1.20435666,118550.0,118540.0,0.43376777]
[1753711088815,1.20435666,118550.0,118540.0,0.003]
[1753711089321,1.20435666,118550.0,118540.0,0.02436714]
[1753711089527,1.36561666,118550.0,118540.0,1.00656577]
[1753711089727,1.36561666,118550.0,118540.0,0.83784777]
[1753711089927,1.36561666,118550.0,118540.0,1.00656577]
[1753711090226,1.36561666,118550.0,118540.0,0.83784777]
[1753711090426,0.66897666,118550.0,118540.0,1.04045415]
[1753711090633,0.66897666,118550.0,118540.0,1.73705415]
[1753711090927,0.66897666,118550.0,118540.0,1.81264318]
[1753711091423,0.01495286,118550.0,118540.0,1.8509027]
[1753711091621,0.01495286,118550.0,118540.0,2.42902152]
[1753711092129,0.01495286,118550.0,118540.0,2.01961309]
[1753711092826,0.01495286,118550.0,118540.0,2.09349857]
[1753711093326,0.01495286,118550.0,118540.0,2.11615248]
[1753711094731,0.3334809,118570.0,118560.0,0.6490296]
[1753711095028,0.3334809,118570.0,118560.0,1.90174684]
[1753711095330,0.5061909,118570.0,118560.0,1.90473522]
[1753711095716,0.5061909,118570.0,118560.0,1.90469522]
[1753711095917,0.7420709,118570.0,118560.0,0.71779496]
[1753711096419,0.7440709,118570.0,118560.0,0.02135496]
[1753711096623,0.7450709,118570.0,118560.0,0.02135496]
[1753711096820,1.24972415,118570.0,118560.0,0.02135496]
[1753711097517,0.5831639,118550.0,118540.0,0.71901391]
[1753711097724,0.6577439,118550.0,118540.0,0.77364302]
[1753711098131,0.6577439,118550.0,118540.0,0.0214117]
[1753711098333,0.2491539,118550.0,118540.0,1.88195437]
[1753711098630,0.2491539,118550.0,118540.0,1.92731437]
[1753711098830,0.2491539,118550.0,118540.0,1.92831437]
[1753711099024,0.2168439,118550.0,118540.0,1.92831437]
[1753711099418,0.590655,118560.0,118550.0,0.1687039]
[1753711099623,0.343365,118560.0,118550.0,1.90161788]
[1753711099824,0.2108749,118560.0,118550.0,2.40925951]
[1753711100023,0.002,118570.0,118560.0,0.4582996]
[1753711100228,0.1706754,118570.0,118560.0,0.99318188]
[1753711100423,0.1706754,118570.0,118560.0,0.99617026]
[1753711101026,0.1686754,118570.0,118560.0,0.99617026]
[1753711101824,0.1706754,118570.0,118560.0,0.99617026]
[1753711102332,0.1716754,118570.0,118560.0,0.99617026]
[1753711102538,0.1716754,118570.0,118560.0,1.18772026]
[1753711102739,0.2206854,118570.0,118560.0,1.18772026]
[1753711103533,0.05201,118570.0,118560.0,1.18772026]
[1753711103729,0.003,118570.0,118560.0,1.18772026]
[1753711104333,0.003,118570.0,118560.0,1.18473188]
[1753711104535,0.00304,118570.0,118560.0,1.18772026]
[1753711105739,0.1717154,118570.0,118560.0,1.18772026]
[1753711106228,0.2207254,118570.0,118560.0,1.18772026]
[1753711106427,0.2207254,118570.0,118560.0,1.88384026]
[1753711106737,0.23563493,118570.0,118560.0,1.18772026]
[1753711106941,0.66117493,118570.0,118560.0,1.88372026]
[1753711107137,0.66117493,118570.0,118560.0,0.63471863]
[1753711107339,0.66117493,118570.0,118560.0,1.33071863]
[1753711107840,0.66117493,118570.0,118560.0,1.83537188]
[1753711108040,0.66117493,118570.0,118560.0,1.88119188]
[1753711108940,0.66117493,118570.0,118560.0,1.90258188]
[1753711111133,0.01794953,118570.0,118560.0,1.87534123]
[1753711111338,0.23563493,118570.0,118560.0,1.90557026]
[1753711111737,0.66117493,118570.0,118560.0,1.13352123]
[1753711111932,0.66117493,118570.0,118560.0,0.02139]
[1753711112131,0.4083338,118550.0,118540.0,1.87953225]
[1753711112331,0.49726333,118550.0,118540.0,1.9799551]
[1753711112834,0.65816333,118550.0,118540.0,1.34213677]
[1753711113037,0.65816333,118550.0,118540.0,1.32071133]
[1753711113236,0.65816333,118550.0,118540.0,1.82536458]
[1753711113437,0.65816333,118550.0,118540.0,1.87118458]
[1753711113639,0.65816333,118550.0,118540.0,1.87218458]
[1753711114442,0.65816333,118550.0,118540.0,1.89357178]
[1753711114641,0.65816333,118550.0,118540.0,1.89457178]
[1753711116340,0.58414333,118550.0,118540.0,1.89457178]
[1753711116840,0.25453953,118550.0,118540.0,1.89457178]
[1753711117240,0.42324333,118550.0,118540.0,1.89457178]
[1753711117941,0.65816333,118550.0,118540.0,0.0233872]
[1753711118339,0.65816333,118550.0,118540.0,0.5171753]
[1753711118544,0.65816333,118550.0,118540.0,0.6180853]
[1753711118741,0.65816333,118550.0,118540.0,1.12273855]
[1753711118937,0.65816333,118550.0,118540.0,1.10135135]
[1753711120050,0.65816333,118550.0,118540.0,1.12275158]
[1753711120347,0.65816333,118550.0,118540.0,0.95403348]
[1753711120547,0.65816333,118550.0,118540.0,1.12275158]
[1753711121237,0.66661395,118550.0,118540.0,1.12275158]
[1753711121438,0.66661395,118550.0,118540.0,0.44938023]
[1753711121641,0.66661395,118550.0,118540.0,0.41641023]
[1753711122239,0.66661395,118550.0,118540.0,0.39501]
[1753711122646,0.66661395,118550.0,118540.0,0.5637281]
[1753711122843,0.66661395,118550.0,118540.0,0.002]
[1753711123050,1.1712672,118550.0,118540.0,0.002]
[1753711123849,0.66661395,118550.0,118540.0,0.02340359]
[1753711124646,0.66661395,118550.0,118540.0,0.61810169]
[1753711124854,0.66661395,118550.0,118540.0,1.19880397]
[1753711124855,0.65816333,118550.0,118540.0,1.19880397]
[1753711126258,0.65816333,118550.0,118540.0,0.44938359]
[1753711127351,0.65816333,118550.0,118540.0,0.41641359]
[1753711128759,0.66681202,118550.0,118540.0,0.41641359]
[1753711128960,0.73486424,118550.0,118540.0,0.41641359]
[1753711129144,0.73486424,118550.0,118540.0,0.30216359]
[1753711129349,0.73486424,118550.0,118540.0,0.02340359]
[1753711129656,1.23951749,118550.0,118540.0,0.02340359]
[1753711130051,0.1687323,118530.0,118520.0,1.08849]
[1753711130358,0.65819183,118530.0,118520.0,0.44753579]
[1753711130653,1.16284508,118530.0,118520.0,0.44454741]
[1753711130952,0.65819183,118530.0,118520.0,0.42323903]
[1753711131455,0.6432965,118520.0,118510.0,0.32507]
[1753711131656,0.65820603,118520.0,118510.0,1.31173281]
[1753711131953,0.65820603,118520.0,118510.0,0.62563443]
[1753711132557,0.65820603,118520.0,118510.0,0.65772443]
[1753711133054,0.65920603,118520.0,118510.0,0.66272443]
[1753711133256,0.65920603,118520.0,118510.0,0.66572443]
[1753711133456,0.65920603,118520.0,118510.0,0.64441983]
[1753711133652,0.65920603,118520.0,118510.0,1.19489308]
[1753711134453,0.26665603,118520.0,118510.0,1.19489308]
[1753711135055,0.44019603,118520.0,118510.0,1.19489308]
[1753711136056,0.26665603,118520.0,118510.0,1.19489308]
[1753711136249,0.26665603,118520.0,118510.0,1.19788146]
[1753711136250,0.01590953,118520.0,118510.0,1.19788146]
[1753711136757,0.2994833,118540.0,118530.0,0.3622123]
[1753711136952,0.2994608,118550.0,118540.0,0.3621981]
[1753711137152,0.2994608,118550.0,118540.0,1.17168038]
[1753711137357,0.2108925,118550.0,118540.0,1.17466876]
[1753711137754,0.2572825,118550.0,118540.0,1.17466876]
[1753711137959,0.2572825,118550.0,118540.0,1.1960176]
[1753711138261,0.6968025,118550.0,118540.0,0.45951884]
[1753711138561,0.6968025,118550.0,118540.0,1.16371903]
[1753711138756,0.6968025,118550.0,118540.0,0.90829365]
[1753711138951,0.6968025,118550.0,118540.0,0.02135462]
[1753711139152,1.20145575,118550.0,118540.0,0.001]
[1753711139352,1.20145575,118550.0,118540.0,0.02336148]
[1753711139552,1.20145575,118550.0,118540.0,0.002]
[1753711139553,1.00846575,118550.0,118540.0,0.002]
[1753711140164,1.17717775,118550.0,118540.0,0.002]
[1753711140754,0.1687466,118520.0,118510.0,0.4134393]
[1753711140958,0.4616666,118520.0,118510.0,1.20242881]
[1753711141357,0.4616666,118520.0,118510.0,1.22508272]
[1753711141960,0.4616666,118520.0,118510.0,1.20542881]